bitfinex-derivatives/quotes_SOLF0:USTF0_20260220
["timestamp","ask_amount","ask_price","bid_price","bid_amount"]
[1771621449939,3.56881736,84.73,84.69,3.81225929]
[1771621450437,14.34680857,84.729,84.681,10.6311]
[1771621450645,3.72150857,84.709,84.664,3.81225929]
[1771621450841,3.56881736,84.7,84.664,3.81225929]
[1771621451343,3.56881736,84.69,84.655,10.6344]
[1771621452243,3.56881736,84.7,84.655,10.6344]
[1771621452745,3.56881736,84.7,84.655,14.44665929]
[1771621453138,3.56881736,84.7,84.656,3.81225929]
[1771621453441,10.6291,84.699,84.656,3.81225929]
[1771621454239,3.56881736,84.69,84.656,3.81225929]
[1771621456043,3.56881736,84.68,84.64,3.81225929]
[1771621456738,35.49,84.734,84.6,21.2827]
[1771621456739,3.56881736,84.67,84.621,3.81225929]
[1771621457645,3.56881736,84.67,84.621,14.45095929]
[1771621457844,3.56881736,84.67,84.622,3.81225929]
[1771621458546,3.56881736,84.69,84.632,3.81225929]
[1771621459747,3.56881736,84.69,84.649,3.81225929]
[1771621460947,3.56881736,84.69,84.648,10.6353]
[1771621460948,3.56881736,84.69,84.654,3.81225929]
[1771621461735,3.56881736,84.7,84.657,3.81225929]
[1771621462645,3.56881736,84.7,84.66,3.81225929]
[1771621468056,3.72150857,84.706,84.663,3.81225929]
[1771621469252,3.56881736,84.69,84.663,3.81225929]
[1771621469450,3.56881736,84.68,84.638,3.81225929]
[1771621469857,3.56881736,84.67,84.638,3.81225929]
[1771621470057,3.56881736,84.67,84.613,3.81225929]
[1771621470557,3.56881736,84.67,84.636,10.6369]
[1771621470949,3.56881736,84.67,84.636,14.44915929]
[1771621471152,14.35310857,84.679,84.639,3.81225929]
[1771621471353,3.56881736,84.65,84.577,3.81225929]
[1771621471553,3.56881736,84.6,84.564,14.45815929]
[1771621472058,3.56881736,84.63,84.581,3.81225929]
[1771621474159,10.6347,84.654,84.605,3.81225929]
[1771621475763,10.6347,84.654,84.607,3.81225929]
[1771621478066,0.64415803,84.642,84.571,3.67884568]
[1771621478263,0.64415803,84.642,84.583,3.67824816]
[1771621479656,10.6375,84.632,84.583,3.67824816]
[1771621481263,10.6375,84.632,84.53,14.58845397]
[1771621481264,0.78793825,84.629,84.565,3.62255202]
[1771621481855,0.78793825,84.617,84.566,3.62255202]
[1771621482364,0.78793825,84.617,84.575,3.62255202]
[1771621482560,10.6383,84.626,84.575,3.62255202]
[1771621483666,10.6383,84.626,84.577,3.62255202]
[1771621484156,10.6391,84.619,84.577,3.62255202]
[1771621489569,0.70887448,84.622,84.585,10.6433]
[1771621489963,0.70887448,84.622,84.541,3.64693608]
[1771621490168,0.6839066,84.597,84.544,3.6589714]
[1771621491169,10.643,84.588,84.544,3.6589714]
[1771621491562,0.6839066,84.587,84.544,3.6589714]
[1771621491769,0.6839066,84.584,84.531,10.65]
[1771621491968,0.6839066,84.584,84.53,3.6589714]
[1771621492168,35.49,84.631,84.53,3.6589714]
[1771621492169,0.78759794,84.579,84.53,3.6589714]
[1771621494476,10.6446,84.575,84.53,3.6589714]
[1771621494677,0.72383973,84.574,84.53,3.6589714]
[1771621495268,0.72383973,84.574,84.471,21.3153]
[1771621495269,0.72383973,84.559,84.48,3.63900483]
[1771621495573,0.72383973,84.519,84.451,3.63900483]
[1771621495772,0.72383973,84.51,84.454,3.63900483]
[1771621496368,0.72383973,84.51,84.455,3.62594752]
[1771621497971,0.72383973,84.51,84.457,3.62594752]
[1771621499670,0.67897909,84.505,84.457,3.62594752]
[1771621499869,0.67897909,84.505,84.406,2.05998828]
[1771621500079,0.67897909,84.505,84.421,3.66143515]
[1771621500277,0.70337885,84.497,84.427,3.64923527]
[1771621500982,0.70337885,84.497,84.438,3.64923527]
[1771621502174,9.58450971,84.5,84.446,3.66001745]
[1771621502382,0.68181449,84.514,84.446,3.66001745]
[1771621502581,9.58450971,84.52,84.446,3.66001745]
[1771621503878,0.68181449,84.519,84.457,3.66001745]
[1771621504670,0.65576152,84.517,84.457,3.66001745]
[1771621505882,0.65576152,84.515,84.457,3.66001745]
[1771621510485,0.65576152,84.515,84.459,3.78805379]
[1771621512282,10.6532,84.507,84.459,3.78805379]
[1771621513686,10.6537,84.503,84.459,3.78805379]
[1771621515392,0.68614604,84.499,84.432,3.78805379]
[1771621515995,11.34254604,84.482,84.432,3.78805379]
[1771621518993,0.72333144,84.481,84.432,3.78805379]
[1771621519987,3.59094385,84.47,84.432,3.78805379]
[1771621520185,10.6587,84.464,84.432,3.78805379]
[1771621520490,3.59094385,84.44,84.391,3.78805379]
[1771621520687,3.59094385,84.43,84.391,3.78805379]
[1771621521696,21.314,84.477,84.377,3.78805379]
[1771621521697,3.59094385,84.42,84.377,3.78805379]
[1771621521888,11.40539222,84.427,84.377,3.78805379]
[1771621522893,21.314,84.477,84.363,3.78805379]
[1771621522894,0.89542324,84.419,84.363,3.78805379]
[1771621523096,0.89542324,84.433,84.368,3.78805379]
[1771621524592,0.89542324,84.433,84.326,2.0620206]
[1771621524593,0.89542324,84.433,84.381,3.78805379]
[1771621525790,0.70551118,84.432,84.381,3.78805379]
[1771621526597,10.6633,84.427,84.381,3.78805379]
[1771621526791,0.72685175,84.426,84.381,3.78805379]
[1771621527192,10.6638,84.423,84.381,3.78805379]
[1771621529495,0.729515,84.455,84.381,3.78805379]
[1771621530797,10.6608,84.447,84.391,3.78805379]
[1771621532595,10.6608,84.447,84.392,10.6676]
[1771621532795,10.6608,84.447,84.393,3.78805379]
[1771621534094,11.36129398,84.447,84.393,3.78805379]
[1771621534495,11.36129398,84.447,84.396,3.78805379]
[1771621536005,0.70049398,84.447,84.402,3.78805379]
[1771621536206,10.6597,84.455,84.402,3.78805379]
[1771621536505,9.62997999,84.47,84.402,3.78805379]
[1771621536698,10.6585,84.465,84.419,3.78805379]
[1771621537198,0.70010579,84.464,84.403,3.78805379]
[1771621539806,10.6599,84.454,84.405,3.78741609]
[1771621541307,10.6608,84.447,84.405,3.78741609]
[1771621543404,0.84629951,84.452,84.405,3.78741609]
[1771621543709,10.6616,84.441,84.405,3.78741609]
[1771621544906,0.84629951,84.452,84.405,3.78741609]
[1771621544907,10.6619,84.438,84.405,3.78741609]
[1771621545909,15.12296564,84.44,84.391,3.78741609]
[1771621546905,15.12296564,84.44,84.4,10.6667]
[1771621547102,15.12296564,84.44,84.401,3.78741609]
[1771621548013,15.12328513,84.44,84.401,3.78741609]
[1771621549708,15.12328513,84.44,84.403,14.45371609]
[1771621551608,4.46158513,84.44,84.403,14.45371609]
[1771621551810,4.46158513,84.44,84.404,3.78741609]
[1771621552010,10.6621,84.437,84.404,3.78741609]
[1771621552310,3.59320402,84.43,84.391,14.45511609]
[1771621552613,3.59320402,84.43,84.392,3.78741609]
[1771621553014,3.59320402,84.43,84.394,3.78741609]
[1771621554218,10.6624,84.434,84.394,3.78741609]
[1771621554414,3.59320402,84.43,84.394,3.78741609]
[1771621556512,10.6624,84.434,84.394,3.78741609]
[1771621561913,3.59320402,84.45,84.396,3.78741609]
[1771621562117,0.7969535,84.449,84.401,3.78741609]
[1771621562416,3.59320402,84.45,84.39,3.59320402]
[1771621562417,3.59320402,84.45,84.403,3.78741609]
[1771621563811,3.59320402,84.45,84.413,3.78741609]
[1771621564017,10.6597,84.455,84.413,3.78741609]
[1771621565515,3.59320402,84.47,84.421,3.78741609]
[1771621566719,14.25100402,84.47,84.423,3.78741609]
[1771621567622,0.83383426,84.473,84.432,3.8342658]
[1771621568524,3.59320402,84.47,84.432,3.8342658]
[1771621568719,3.59320402,84.47,84.434,3.8342658]
[1771621569314,3.59320402,84.47,84.403,14.57981879]
[1771621569315,0.81819508,84.449,84.41,3.8342658]
[1771621574729,3.59320402,84.44,84.398,3.8342658]
[1771621575735,10.6618,84.439,84.398,3.8342658]
[1771621576136,3.59320402,84.44,84.4,3.8342658]
[1771621581640,3.59320402,84.44,84.402,3.8342658]
[1771621581841,3.59320402,84.43,84.402,3.8342658]
[1771621582546,0.82332917,84.439,84.402,3.8342658]
[1771621584143,10.6595,84.457,84.402,3.8342658]
[1771621584349,3.59320402,84.46,84.417,3.8342658]
[1771621584642,0.80198946,84.467,84.417,3.8342658]
[1771621585243,3.59320402,84.46,84.417,3.8342658]
[1771621585743,0.80198946,84.459,84.419,3.8342658]
[1771621585944,11.61933551,84.488,84.407,3.8342658]
[1771621585945,3.59320402,84.44,84.407,3.8342658]
[1771621586748,3.59320402,84.44,84.408,10.6656]
[1771621587446,3.59320402,84.44,84.409,3.8342658]
[1771621587749,0.80198946,84.449,84.409,3.8342658]
[1771621593056,0.91322311,84.462,84.419,3.8342658]
[1771621593257,10.6583,84.467,84.419,3.8342658]
[1771621594652,10.6583,84.467,84.42,10.664]
[1771621594851,10.6583,84.467,84.421,3.8342658]
[1771621595152,3.59320402,84.45,84.409,3.8342658]
[1771621595358,0.80088125,84.449,84.409,3.8342658]
[1771621595954,10.6609,84.446,84.409,3.8342658]
[1771621596451,11.53387084,84.446,84.409,3.8342658]
[1771621596656,3.59320402,84.44,84.409,3.8342658]
[1771621596857,3.59320402,84.44,84.398,10.6669]
[1771621597054,14.25480402,84.44,84.398,10.6669]
[1771621598349,3.59320402,84.44,84.398,14.39438048]
[1771621598659,3.59320402,84.44,84.4,10.6666]
[1771621599259,3.59320402,84.44,84.4,14.39408048]
[1771621601054,10.6599,84.454,84.409,3.72748048]
[1771621601459,10.6606,84.448,84.409,3.72748048]
[1771621606166,10.6597,84.456,84.413,3.72748048]
[1771621607162,0.86517537,84.465,84.415,3.72748048]
[1771621608662,0.86517537,84.465,84.412,11.06042591]
[1771621608663,0.86517537,84.465,84.418,3.72748048]
[1771621609763,3.59132525,84.46,84.418,3.72748048]
[1771621612755,14.25042525,84.46,84.418,3.72748048]
[1771621612955,3.59132525,84.44,84.406,3.72748048]
[1771621613262,3.59132525,84.44,84.399,11.06042591]
[1771621613664,10.6618,84.439,84.399,11.06042591]
[1771621614057,10.6618,84.439,84.4,11.06042591]
[1771621615966,10.6618,84.439,84.399,11.06042591]
[1771621616469,10.6618,84.439,84.399,14.78790639]
[1771621617166,10.6618,84.439,84.4,3.72748048]
[1771621617367,3.59132525,84.44,84.4,3.72748048]
[1771621617570,0.89741452,84.463,84.4,3.72748048]
[1771621617768,3.59132525,84.48,84.43,3.72748048]
[1771621618066,7.55645533,84.45,84.416,14.78790639]
[1771621618263,3.96513008,84.449,84.408,11.06042591]
[1771621619366,3.96513008,84.449,84.409,3.72748048]
[1771621619562,3.96513008,84.488,84.409,3.72748048]
[1771621619770,3.96513008,84.488,84.441,0.56069429]
[1771621620062,3.96513008,84.488,84.455,11.06042591]
[1771621620263,3.96513008,84.488,84.448,0.56069429]
[1771621620264,3.96513008,84.488,84.45,11.06042591]
[1771621620461,3.96513008,84.488,84.448,11.6211202]
[1771621620966,3.96513008,84.488,84.448,11.06042591]
[1771621621567,3.96513008,84.488,84.445,11.06042591]
[1771621622270,3.96513008,84.488,84.443,11.06042591]
[1771621623172,3.96513008,84.488,84.442,1.09913494]
[1771621624670,3.96513008,84.509,84.46,4.69766783]
[1771621624874,3.96513008,84.509,84.46,1.10634258]
[1771621625874,3.96513008,84.509,84.461,1.10634258]
[1771621626467,3.96513008,84.534,84.475,1.18123412]
[1771621626672,3.96513008,84.534,84.491,1.18371348]
[1771621626973,3.72573042,84.547,84.501,1.18371348]
[1771621627368,3.72573042,84.547,84.502,1.17956834]
[1771621627573,7.53757541,84.56,84.511,1.17956834]
[1771621627772,3.59132525,84.57,84.521,1.17956834]
[1771621627973,22.03465157,84.641,84.473,14.57981879]
[1771621627974,3.94625016,84.559,84.501,1.17956834]
[1771621628778,3.94625016,84.539,84.491,1.34514316]
[1771621629468,10.6493,84.538,84.491,1.34514316]
[1771621629668,3.94625016,84.537,84.491,1.34514316]
[1771621629970,3.94625016,84.529,84.477,1.34514316]
[1771621630773,10.6505,84.528,84.477,1.34514316]
[1771621631076,14.59675016,84.528,84.477,1.34514316]
[1771621631472,14.59675016,84.528,84.48,1.14902474]
[1771621631473,3.94625016,84.528,84.48,1.14902474]
[1771621632279,3.94625016,84.528,84.481,10.6564]
[1771621633377,165.559,84.588,84.473,263.30032721]
[1771621633378,3.94625016,84.519,84.473,263.30032721]
[1771621634775,3.94625016,84.519,84.474,1.12931522]
[1771621637280,3.94625016,84.518,84.474,1.12931522]
[1771621637880,3.94625016,84.509,84.456,1.14465562]
[1771621638673,10.6535,84.504,84.456,1.14465562]
[1771621639081,10.6535,84.504,84.46,3.59132525]
[1771621641375,14.59975016,84.504,84.46,3.59132525]
[1771621644085,3.94625016,84.501,84.444,1.12298852]
[1771621644290,3.94625016,84.499,84.444,1.12298852]
[1771621645590,3.94625016,84.489,84.444,1.12298852]
[1771621645988,3.94625016,84.489,84.432,262.81821988]
[1771621646190,3.94625016,84.479,84.432,262.81821988]
[1771621646987,3.94625016,84.479,84.432,263.91192399]
[1771621647795,3.94625016,84.479,84.442,10.6613]
[1771621650887,3.94625016,84.497,84.45,11.6989971]
[1771621651084,3.94625016,84.497,84.45,1.0386971]
[1771621651690,10.6555,84.489,84.45,1.0386971]
[1771621652694,14.60175016,84.489,84.45,1.0386971]
[1771621653192,14.60175016,84.489,84.432,262.81821988]
[1771621653193,3.94625016,84.488,84.441,10.6614]
[1771621654197,3.94625016,84.518,84.461,0.99932444]
[1771621654500,3.94625016,84.518,84.47,3.59132525]
[1771621655196,3.94625016,84.514,84.47,3.59132525]
[1771621656798,10.6526,84.512,84.47,3.59132525]
[1771621657002,14.59885016,84.512,84.47,3.59132525]
[1771621657200,3.94625016,84.525,84.48,3.59132525]
[1771621657703,3.8043506,84.521,84.48,3.59132525]
[1771621657901,3.8043506,84.509,84.453,1.14901273]
[1771621658702,3.8043506,84.503,84.454,10.6598]
[1771621662010,3.8043506,84.498,84.454,10.6598]
[1771621663807,3.8043506,84.498,84.455,1.02431091]
[1771621665406,3.8043506,84.498,84.458,10.6593]
[1771621665908,10.6545,84.497,84.458,10.6593]
[1771621666108,3.8043506,84.496,84.455,1.02431091]
[1771621666308,3.8043506,84.496,84.451,10.6602]
[1771621666511,3.8043506,84.486,84.442,10.95217462]
[1771621666703,3.8043506,84.479,84.442,10.95217462]
[1771621667499,3.8043506,84.479,84.442,1.0170336]
[1771621667698,3.8043506,84.479,84.448,10.6606]
[1771621669209,3.8043506,84.479,84.442,1.0170336]
[1771621669609,3.8043506,84.479,84.445,10.6609]
[1771621672911,3.8043506,84.477,84.438,10.6618]
[1771621673113,3.8043506,84.477,84.436,1.06058335]
[1771621674212,3.8043506,84.477,84.437,1.05461243]
[1771621674712,3.8043506,84.477,84.443,10.6611]
[1771621680615,10.656,84.485,84.451,1.05814549]
[1771621682817,3.8043506,84.5,84.457,1.06387628]
[1771621683206,3.8043506,84.5,84.45,14.54123254]
[1771621683207,3.8043506,84.5,84.461,1.06387628]
[1771621684721,10.6542,84.499,84.461,1.06387628]
[1771621685923,14.4585506,84.499,84.461,1.06387628]
[1771621687216,3.6800253,84.498,84.461,1.06387628]
[1771621688216,3.6800253,84.496,84.461,1.06387628]
[1771621688415,3.58905792,84.49,84.453,10.95217462]
[1771621688621,3.6800253,84.489,84.445,10.95217462]
[1771621688821,3.6800253,84.489,84.446,10.6608]
[1771621689030,3.6800253,84.489,84.447,1.01946774]
[1771621690423,3.6800253,84.489,84.44,3.58905792]
[1771621690424,10.6542,84.499,84.456,11.6436854]
[1771621690723,3.6800253,84.498,84.456,11.6436854]
[1771621692319,3.6800253,84.498,84.458,11.65368145]
[1771621696523,3.6800253,84.498,84.459,0.99433468]
[1771621700325,3.6800253,84.498,84.459,11.9465093]
[1771621701721,3.6800253,84.498,84.46,0.99178495]
[1771621702224,3.6800253,84.498,84.46,11.94395957]
[1771621703526,3.6800253,84.495,84.46,11.94395957]
[1771621704132,3.6800253,84.495,84.461,10.95217462]
[1771621705127,35.54,84.53,84.467,0.9967056]
[1771621705325,3.6800253,84.538,84.5,4.58576352]
[1771621706430,3.6800253,84.538,84.5,11.6507056]
[1771621708628,3.6800253,84.577,84.525,1.37551372]
[1771621708928,3.6800253,84.577,84.531,1.37551372]
[1771621709133,14.45631366,84.634,84.53,3.58905792]
[1771621709134,3.6800253,84.589,84.541,1.37551372]
[1771621709837,3.6800253,84.609,84.551,1.37551372]
[1771621710131,3.6800253,84.609,84.56,3.58905792]
[1771621710330,3.6800253,84.609,84.561,1.43032309]
[1771621710533,3.6800253,84.609,84.57,3.58905792]
[1771621711631,3.6800253,84.609,84.552,10.6474]
[1771621712932,3.6800253,84.599,84.549,1.43032309]
[1771621713134,3.6800253,84.589,84.542,10.6486]
[1771621713531,3.6800253,84.589,84.536,1.26783267]
[1771621713532,3.6800253,84.579,84.536,1.26783267]
[1771621715037,3.6800253,84.579,84.53,3.58905792]
[1771621715435,3.6800253,84.569,84.519,10.6516]
[1771621717036,3.6800253,84.599,84.544,10.6484]
[1771621717235,3.6800253,84.599,84.55,3.58905792]
[1771621717529,3.6800253,84.599,84.492,180.32371879]
[1771621717530,3.6800253,84.599,84.56,3.58905792]
[1771621717739,3.80084949,84.619,84.57,3.58905792]
[1771621718235,3.80084949,84.619,84.564,1.17357897]
[1771621718936,3.80084949,84.637,84.583,1.33824074]
[1771621719132,3.80084949,84.659,84.6,3.58905792]
[1771621719332,3.80084949,84.656,84.601,10.6413]
[1771621719532,3.80084949,84.649,84.6,3.58905792]
[1771621721033,3.80084949,84.639,84.58,5.0097457]
[1771621721239,3.80084949,84.629,84.58,1.42068778]
[1771621721433,3.80084949,84.629,84.581,1.42068778]
[1771621721829,3.80084949,84.644,84.591,10.6425]
[1771621722029,3.80084949,84.644,84.591,12.06318778]
[1771621723738,3.80084949,84.639,84.591,12.06318778]
[1771621723937,3.80084949,84.639,84.591,10.6425]
[1771621724441,3.80084949,84.639,84.58,3.58905792]
[1771621724442,10.6368,84.638,84.581,10.6438]
[1771621724640,3.80084949,84.629,84.581,10.6438]
[1771621726244,3.80084949,84.629,84.59,10.6426]
[1771621726447,3.80084949,84.629,84.59,14.23165792]
[1771621726744,3.80084949,84.629,84.582,1.23183647]
[1771621726945,3.80084949,84.629,84.584,10.6434]
[1771621727741,3.80084949,84.629,84.582,1.23183647]
[1771621728443,3.80084949,84.625,84.575,10.6445]
[1771621729347,3.80084949,84.625,84.586,10.6432]
[1771621730048,3.80084949,84.625,84.577,10.6443]
[1771621731653,10.6392,84.618,84.576,1.26357506]
[1771621731838,7.37756373,84.62,84.576,1.26357506]
[1771621732639,7.37756373,84.62,84.577,10.6442]
[1771621733752,3.80084949,84.62,84.577,10.6442]
[1771621733946,3.57671424,84.63,84.585,10.6432]
[1771621734142,3.57671424,84.63,84.585,11.84000658]
[1771621734541,7.37756373,84.63,84.585,11.84000658]
[1771621734749,3.80084949,84.629,84.585,11.84000658]
[1771621735453,3.80084949,84.628,84.577,10.6442]
[1771621735648,3.80084949,84.619,84.577,10.6442]
[1771621736644,14.43994949,84.619,84.577,10.6442]
[1771621737041,3.80084949,84.618,84.577,10.6442]
[1771621737242,3.80084949,84.607,84.551,1.18963398]
[1771621737548,3.57671424,84.6,84.551,1.18963398]
[1771621738750,3.57671424,84.6,84.562,10.6462]
[1771621739346,3.80084949,84.607,84.562,10.6462]
[1771621741149,3.80084949,84.604,84.562,10.6462]
[1771621741352,3.80084949,84.599,84.553,10.6474]
[1771621741745,14.21691424,84.61,84.571,10.645]
[1771621741949,3.57671424,84.61,84.571,10.645]
[1771621742957,3.80084949,84.609,84.571,10.645]
[1771621743649,14.44124949,84.609,84.571,10.645]
[1771621743857,3.80084949,84.608,84.571,10.645]
[1771621745951,3.80084949,84.579,84.538,1.08356329]
[1771621746251,3.80084949,84.579,84.511,1.08356329]
[1771621746252,3.57671424,84.57,84.511,1.08356329]
[1771621746957,3.57671424,84.57,84.521,1.08768023]
[1771621747750,3.57671424,84.57,84.537,10.6493]
[1771621748855,3.57671424,84.56,84.527,10.6506]
[1771621753353,3.57671424,84.58,84.528,0.85088434]
[1771621753955,3.57671424,84.58,84.543,10.6485]
[1771621754156,7.52020423,84.58,84.543,10.6485]
[1771621754551,3.57671424,84.57,84.535,10.6495]
[1771621755152,7.52020423,84.57,84.535,10.6495]
[1771621757962,3.94348999,84.563,84.527,10.6506]
[1771621758264,3.57671424,84.56,84.527,10.6506]
[1771621758863,3.94348999,84.563,84.534,10.6497]
[1771621760164,3.94348999,84.563,84.527,11.5720275]
[1771621761562,10.6457,84.567,84.527,11.5720275]
[1771621761761,10.6446,84.576,84.531,0.89380655]
[1771621762665,10.6446,84.576,84.541,10.6489]
[1771621762863,3.94348999,84.575,84.531,0.89380655]
[1771621763764,3.94348999,84.575,84.535,10.6496]
[1771621766467,3.94348999,84.575,84.541,10.6488]
[1771621772073,3.94348999,84.594,84.551,0.88274113]
[1771621772270,3.94348999,84.619,84.561,0.88229881]
[1771621772967,3.94348999,84.638,84.583,0.88229881]
[1771621773170,3.94348999,84.638,84.528,165.6739]
[1771621773171,3.94348999,84.638,84.591,0.88229881]
[1771621774679,3.94348999,84.636,84.591,11.52479881]
[1771621775978,14.58098999,84.632,84.591,11.52479881]
[1771621776173,3.94348999,84.631,84.591,0.88229881]
[1771621776373,3.94348999,84.629,84.584,11.54416092]
[1771621778382,10.6387,84.622,84.584,0.90076092]
[1771621778586,7.37764421,84.61,84.571,0.87303772]
[1771621778782,3.80092997,84.61,84.571,0.87303772]
[1771621781875,10.6405,84.608,84.571,0.87303772]
[1771621782081,3.80092997,84.607,84.565,10.6458]
[1771621784587,3.80092997,84.605,84.565,10.6458]
[1771621784785,3.80092997,84.605,84.559,0.85652784]
[1771621785392,10.641,84.604,84.562,0.85193295]
[1771621785591,3.80092997,84.603,84.562,0.85193295]
[1771621786694,10.6413,84.601,84.562,0.85193295]
[1771621789004,14.44222997,84.601,84.562,0.85193295]
[1771621789304,3.80092997,84.594,84.554,0.87316464]
[1771621790705,14.44332997,84.593,84.557,10.6468]
[1771621791600,3.80092997,84.592,84.557,10.6468]
[1771621798016,3.80092997,84.592,84.534,14.55351922]
[1771621798017,3.80092997,84.587,84.549,10.6478]
[1771621800319,10.6419,84.597,84.553,0.85754103]
[1771621800811,10.6426,84.591,84.553,0.85754103]
[1771621801915,10.6415,84.6,84.561,0.85754103]
[1771621802126,3.57952082,84.62,84.571,0.85754103]
[1771621802315,3.80092997,84.622,84.571,0.85754103]
[1771621802517,10.6376,84.631,84.591,0.86065286]
[1771621802720,3.80092997,84.635,84.591,0.86065286]
[1771621803723,3.80092997,84.635,84.598,10.6416]
[1771621803916,3.80092997,84.619,84.579,0.86065286]
[1771621805622,3.80092997,84.618,84.579,0.86065286]
[1771621807823,3.80092997,84.618,84.582,10.6437]
[1771621810126,3.80092997,84.618,84.575,10.6445]
[1771621811729,3.64865084,84.616,84.575,10.6445]
[1771621814430,3.57952082,84.62,84.573,0.9569689]
[1771621814431,3.64865084,84.614,84.573,0.9569689]
[1771621814930,3.64865084,84.614,84.558,14.55351922]
[1771621814931,3.64865084,84.597,84.554,0.88780992]
[1771621815825,3.64865084,84.61,84.563,0.88780992]
[1771621816325,3.64865084,84.608,84.563,0.88780992]
[1771621817028,3.64865084,84.605,84.565,10.6458]
[1771621818832,3.64865084,84.598,84.556,10.647]
[1771621819830,14.29055084,84.597,84.556,10.647]
[1771621820936,3.64865084,84.594,84.556,10.647]
[1771621823835,3.64865084,84.592,84.551,0.89190907]
[1771621824738,3.64865084,84.592,84.554,10.6471]
[1771621825929,3.64865084,84.592,84.551,0.89190907]
[1771621826136,3.64865084,84.588,84.551,0.89190907]
[1771621827838,3.64865084,84.588,84.552,10.6475]
[1771621830938,3.64865084,84.585,84.547,11.03565877]
[1771621831139,3.64865084,84.579,84.538,11.03565877]
[1771621831638,3.64865084,84.568,84.523,11.03565877]
[1771621831836,3.64865084,84.559,84.52,11.03565877]
[1771621832239,3.64865084,84.558,84.514,0.89662685]
[1771621833742,3.64865084,84.556,84.516,10.652]
[1771621836044,3.64865084,84.546,84.508,0.85810583]
[1771621836443,14.29745084,84.542,84.501,0.85747513]
[1771621836640,3.57952082,84.55,84.501,0.85747513]
[1771621836843,3.64865084,84.554,84.501,0.85747513]
[1771621837638,3.89188144,84.552,84.511,10.6525]
[1771621838441,3.57952082,84.56,84.519,11.52371415]
[1771621838646,3.89188144,84.564,84.52,0.87211415]
[1771621839151,3.89188144,84.564,84.523,11.52321415]
[1771621843259,10.6465,84.56,84.523,0.87211415]
[1771621843655,3.89188144,84.564,84.523,0.87211415]
[1771621844660,3.89188144,84.562,84.523,0.87211415]
[1771621846965,3.89188144,84.562,84.524,10.651]
[1771621850364,3.89188144,84.562,84.529,10.6503]
[1771621863577,3.89188144,84.574,84.536,0.98963065]
[1771621864176,10.6432,84.586,84.546,1.00195441]
[1771621864484,3.89188144,84.579,84.536,1.00195441]
[1771621864683,3.89188144,84.569,84.525,1.00195441]
[1771621865775,3.89188144,84.565,84.526,10.6507]
[1771621866376,3.89188144,84.561,84.519,10.6516]
[1771621866577,3.89188144,84.559,84.519,10.6516]
[1771621869374,3.73122099,84.549,84.507,11.03565877]
[1771621869680,3.73122099,84.549,84.502,0.88180789]
[1771621870780,3.73122099,84.546,84.505,10.6534]
[1771621870982,3.73122099,84.546,84.502,0.88180789]
[1771621872787,3.73122099,84.546,84.511,10.6526]
[1771621873585,3.73122099,84.544,84.502,0.88180789]
[1771621874187,3.73122099,84.544,84.502,11.91746666]
[1771621874386,3.73122099,84.544,84.503,11.03565877]
[1771621874787,3.73122099,84.544,84.505,10.6533]
[1771621875290,3.73122099,84.544,84.505,21.68895877]
[1771621876091,3.58251572,84.54,84.506,11.03565877]
[1771621877192,3.58251572,84.54,84.505,21.68895877]
[1771621880297,3.58251572,84.54,84.511,10.6526]
[1771621880499,3.73122099,84.544,84.511,10.6526]
[1771621886909,3.73122099,84.54,84.504,11.05896222]
[1771621887109,3.73122099,84.54,84.502,0.88180789]
[1771621887305,3.73122099,84.529,84.493,11.05896222]
[1771621887606,3.73122099,84.529,84.491,266.88475201]
[1771621887805,3.73122099,84.527,84.492,10.655]
[1771621888007,3.73122099,84.527,84.493,1.0017221]
[1771621893904,3.73122099,84.527,84.492,10.655]
[1771621894111,3.73122099,84.527,84.491,266.88475201]
[1771621897413,3.67780913,84.519,84.481,0.82883863]
[1771621898714,3.67780913,84.518,84.482,10.6562]
[1771621903113,3.58251572,84.53,84.481,0.82883863]
[1771621903114,3.67780913,84.516,84.481,0.82883863]
[1771621904617,14.33020913,84.514,84.481,0.82883863]
[1771621904820,3.67780913,84.514,84.481,0.82883863]
[1771621906111,3.67780913,84.514,84.465,11.05896222]
[1771621906112,3.58251572,84.51,84.472,0.80370984]
[1771621906311,3.67780913,84.509,84.467,10.6581]
[1771621907819,3.67780913,84.506,84.467,10.6581]
[1771621909123,3.67780913,84.506,84.462,0.80352723]
[1771621909124,3.67780913,84.499,84.462,0.80352723]
[1771621918427,3.67780913,84.492,84.449,10.6605]
[1771621918731,3.67780913,84.479,84.442,0.73336489]
[1771621924333,3.67780913,84.489,84.45,0.72262971]
[1771621924529,3.67780913,84.5,84.46,3.58847351]
[1771621924729,3.67780913,84.5,84.448,0.72262971]
[1771621924930,3.67780913,84.489,84.448,0.72262971]
[1771621925736,3.67780913,84.486,84.448,0.72262971]
[1771621927237,3.88490068,84.483,84.438,10.6618]
[1771621927634,3.88490068,84.483,84.438,11.43500286]
[1771621927837,3.88490068,84.483,84.439,0.77320286]